Cogmind - Beta 13 @@@ ROGUE MODE // 2024.04.05 @ 12:56:40 Player: YenYu Result: Self-destructed Performance ------------- Evolutions (2) 1000 Regions Visited (3) 600 Robots Destroyed (11) 55 Value Destroyed (121) 121 Prototype IDs (4) 80 Alien Tech Used (0) 0 Bonus (0) 0 TOTAL SCORE: 1856 Bonus ------- None Cogmind --------- Core Integrity 409/550 Matter 146/300 Energy 500/500 System Corruption 0% Temperature Cool (0) Movement Flying (182) Ox2 Location -8/Materials Parts ------- > --- POWER (2) -------- Enhanced Nuclear Core Enhanced Nuclear Core > --- PROPULSION (4) --- Cesium-ion Thruster Improved VTOL Module > --- UTILITY (3) ------ Visual Processing Unit Sensor Array Seismic Detector > --- WEAPON (2) ------- Minigun Minigun > --- INVENTORY (5) ---- Ion Engine Minigun Improved Datajack Peak State ------------ > --- POWER ------------ Enhanced Nuclear Core Enhanced Nuclear Core > --- PROPULSION ------- Airjet Airjet Airjet Improved VTOL Module > --- UTILITY ---------- Visual Processing Unit Sensor Array Seismic Detector > --- WEAPON ----------- Minigun Minigun > --- INVENTORY -------- Ion Engine Airjet Cesium-ion Thruster Minigun Improved Datajack [Rating: 34] Favorites ----------- Power Enhanced Nuclear Core Engine Ion Engine Power Core Enhanced Nuclear Core Propulsion Airjet Wheel Wheel Hover Unit Airjet Flight Unit Flight Unit Utility Seismic Detector Device Seismic Detector Storage Small Storage Unit Processor Visual Processing Unit Weapon Minigun Energy Gun Small Laser Ballistic Gun Minigun Build | -11 -10 -9 -8 ------- Run | Yrd Mat Mat Mat Slots Evolved 4 | . . 2 2 Power 1 | . . . 1 Propulsion 2 | . . 2 . Utility 1 | . . . 1 Weapon . | . . . . Parts Attached 35 | 7 6 8 14 Power 5 | . 1 1 3 Engine 3 | . 1 1 1 Core 2 | . . . 2 Reactor . | . . . . Propulsion 17 | 3 3 5 6 Treads . | . . . . Leg . | . . . . Wheel 3 | 3 . . . Hover 6 | . . 4 2 Flight 8 | . 3 1 4 Utility 6 | 2 1 1 2 Device 4 | 1 1 1 1 Storage 1 | 1 . . . Processor 1 | . . . 1 Hackware . | . . . . Protection . | . . . . Artifact . | . . . . Weapon 7 | 2 1 1 3 Energy Gun 1 | 1 . . . Energy Cannon . | . . . . Ballistic Gun 6 | 1 1 1 3 Ballistic Cannon . | . . . . Launcher . | . . . . Special Weapon . | . . . . Impact Weapon . | . . . . Slashing Weapon . | . . . . Piercing Weapon . | . . . . Special Melee Weapon . | . . . . Unidentified Prototypes 2 | . . . 2 Parts Lost 9 | . 1 4 4 Power 1 | . . 1 . Propulsion 8 | . 1 3 4 Utility . | . . . . Weapon . | . . . . Highest Loss Streak 4 | . 1 2 4 To Critical Strikes . | . . . . Average Slot Usage (%) 91 | . 86 83 98 Engine 3 | . 3 6 1 Core 8 | . . . 16 Wheel 4 | . 16 . . Hover 21 | . . 22 33 Flight 5 | . 8 10 1 Device 20 | . 23 22 18 Storage 1 | . 4 . . Processor 4 | . . . 9 Energy Gun 2 | . 10 . . Ballistic Gun 18 | . 17 22 18 Naked Turns . | . . . . Heaviest Build 24 | 8 8 9 24 Greatest Support 32 | 20 20 32 32 Greatest Overweight (x) 2 | . . 1 2 Average Overweight (x) . | . . . . Largest Inventory Capacity 8 | 8 8 5 5 Average Capacity 5 | 7 5 5 5 Most Carried 5 | 3 5 5 5 Average Carried 3 | . 2 4 4 Final Capacity 8 | 8 5 5 5 Final Carried 5 | 1 5 2 3 Class Distribution -------------------- 83% | Mutant 16% | Scavenger-Mutant Dominant Class ---------------- Mutant | -10/Materials Mutant | -9/Materials Mutant | -8/Materials Resources | -11 -10 -9 -8 ----------- Run | Yrd Mat Mat Mat Matter Collected 486 | 279 43 28 136 Remotely . | . . . . Salvage Created 268 | 120 43 28 77 Parts 23 | 7 7 2 7 Haulers Intercepted . | . . . . Recyclers Shooed . | . . . . Parts Field Recycled . | . . . . Retrieved Matter . | . . . . Parts Self-Destructed . | . . . . Prevented . | . . . . Kills | -11 -10 -9 -8 ------- Run | Yrd Mat Mat Mat Combat Hostiles Destroyed 6 | . 3 . 3 Guns 6 | . 3 . 3 Classes Destroyed 4 | 2 1 1 . Tunneler 2 | 2 . . . Recycler 1 | 1 . . . Watcher 2 | . . 1 1 Swarmer 6 | . 3 . 3 Best Kill Streak 3 | 2 3 1 3 Combat Bots Only 3 | . 3 . 3 Max Kills in Single Turn 1 | 1 1 1 1 Gunslinging . | . . . . Exploded . | . . . . Melee . | . . . . Uniques/NPCs Destroyed . | . . . . Combat | -11 -10 -9 -8 -------- Run | Yrd Mat Mat Mat Hostile Shots Fired 125 | . 31 23 71 Missed 40 | . 9 9 22 Damage Taken 1164 | . 181 274 709 Core 241 | . 32 68 141 Absorbed by Shields . | . . . . Core Remaining (%) 90 | 100 87 83 . Volleys Fired 48 | 9 19 7 13 Largest 2 | 2 2 2 2 Hottest 60 | 60 60 40 50 Shots Fired 88 | 18 30 14 26 Gun 88 | 18 30 14 26 Cannon . | . . . . Launcher . | . . . . Special . | . . . . Kinetic 68 | 9 19 14 26 Thermal 20 | 9 11 . . Explosive . | . . . . Electromagnetic . | . . . . Robot Hit Streak 6 | 6 4 5 3 Robot Miss Streak 4 | 2 4 4 3 Penetration Max . | . . . . Secondary Targets 2 | . 2 . . Max Gunslinging Chain 1 | . 1 . . Shots Hit Robots 44 | 12 14 7 11 Core Hits 18 | 5 5 2 6 Critical Kills . | . . . . Critical Parts Destroyed 1 | . . . 1 Critical Strikes 1 | . . . 1 Destroy 1 | . . . 1 Melee Attacks . | . . . . Impact . | . . . . Slashing . | . . . . Piercing . | . . . . Sneak Attacks . | . . . . Combat Hostiles . | . . . . Follow-up Attacks . | . . . . Damage Inflicted 539 | 118 136 58 227 Guns 514 | 118 136 58 202 Cannons . | . . . . Explosions . | . . . . Melee . | . . . . Ramming 25 | . . . 25 Kinetic 401 | 51 90 58 202 Thermal 113 | 67 46 . . Explosive . | . . . . Electromagnetic . | . . . . Impact . | . . . . Slashing . | . . . . Piercing . | . . . . Highest Corruption 1 | . . 1 . Average Corruption 1 | . . 1 . Corruption Purged . | . . . . Corruption Blocked . | . . . . Effects 1 | . . 1 . Message Errors 1 | . . 1 . Overload Shots . | . . . . Overflow Damage . | . . . . Projectiles . | . . . . Explosions . | . . . . Melee . | . . . . Knockbacks . | . . . . Impact . | . . . . Kinetic . | . . . . Secondary . | . . . . Self-Inflicted Damage 12 | . . . 12 Shots . | . . . . Rammed 3 | . . . 3 Targets Rammed 3 | . . . 3 Kicked . | . . . . Crushed . | . . . . Highest Temperature 139 | 20 20 1 139 Average Temperature 44 | 9 9 1 55 Received Heat Transfer 309 | . . 75 234 Siege Activations . | . . . . Robots Corrupted . | . . . . Combat Hostiles . | . . . . Parts Fried . | . . . . Impact Corruptions . | . . . . Robots Melted . | . . . . Combat Hostiles . | . . . . Parts Melted . | . . . . Heat Transferred 250 | 150 100 . . Parts Sabotaged . | . . . . Parts Stolen . | . . . . Parts Stripped . | . . . . Power Chain Reactions . | . . . . Alert | -11 -10 -9 -8 ------- Run | Yrd Mat Mat Mat Peak Influence 285 | 15 84 122 285 Initial 51 | . 9 35 51 Average 86 | 6 47 89 127 Maximum Alert Level 1 | . . . 1 Low Security (%) 89 | 100 100 100 75 Level 1 10 | . . . 24 Level 2 . | . . . . Level 3 . | . . . . Level 4 . | . . . . Level 5 . | . . . . High Security . | . . . . Max Security . | . . . . Squads Dispatched 1 | . . . 1 Investigation 1 | . . . 1 Extermination . | . . . . Reinforcement . | . . . . Assault . | . . . . Garrison . | . . . . Intercept . | . . . . Searches Triggered . | . . . . Construction Impeded . | . . . . Haulers Reinforced . | . . . . Active Scanning Responses . | . . . . Cargo Convoy Interrupts . | . . . . Stealth | -11 -10 -9 -8 --------- Run | Yrd Mat Mat Mat Distress Signals 2 | . . . 2 Communications Jammed . | . . . . Distress Signals . | . . . . Times Spotted 31 | . 6 7 18 Peak Tracking Total 8 | . 4 7 8 Tactical Retreats 5 | . . 2 3 Traps | -11 -10 -9 -8 ------- Run | Yrd Mat Mat Mat Traps Triggered 2 | . . 1 1 Indirectly . | . . . . Trap Hack Attempts . | . . . . Triggered . | . . . . Disarmed . | . . . . Reprogrammed . | . . . . Reused . | . . . . Traps Extracted . | . . . . Installed . | . . . . Triggered . | . . . . Machines | -11 -10 -9 -8 ---------- Run | Yrd Mat Mat Mat Machines Disabled . | . . . . Max in Single Turn . | . . . . Machines Repaired . | . . . . Machines Dismantled . | . . . . Machines Sabotaged . | . . . . Overloaded Fab Kills . | . . . . Hacking | -11 -10 -9 -8 --------- Run | Yrd Mat Mat Mat Machines Accessed 5 | . 1 2 2 Terminals 4 | . . 2 2 Fabricators . | . . . . Repair Stations . | . . . . Recycling Units 1 | . 1 . . Scanalyzers . | . . . . Garrison Access . | . . . . Total Hacks 14 | . 3 5 6 Successful 6 | . 1 1 4 Failed 8 | . 2 4 2 Catastrophic 1 | . . 1 . Database Lockouts . | . . . . Manual 1 | . . 1 . Terminals 11 | . . 5 6 Fabricators . | . . . . Repair Stations . | . . . . Recycling Units 3 | . 3 . . Scanalyzers . | . . . . Garrison Access . | . . . . Terminal Hacks 5 | . . 1 4 Record 2 | . . 1 1 Prototype ID Bank 1 | . . . 1 Alert Level 1 | . . . 1 Zone Layout 1 | . . . 1 Fabricator Hacks . | . . . . Repair Station Hacks . | . . . . Recycling Unit Hacks 1 | . 1 . . Retrieve Components 1 | . 1 . . Scanalyzer . | . . . . Garrison Access Hacks . | . . . . Unauthorized Hacks . | . . . . Terminals . | . . . . Fabricators . | . . . . Repair Stations . | . . . . Recycling Units . | . . . . Scanalyzers . | . . . . Garrison Access . | . . . . Data Cores Recovered . | . . . . Used . | . . . . Hacking Detections 4 | . 1 2 1 Full Trace Events 1 | . . . 1 Feedback Events . | . . . . Feedback Blocked . | . . . . Robot Schematics Acquired . | . . . . Robots Built . | . . . . Authchips . | . . . . Time . | . . . . Total Robot Build Rating . | . . . . Part Schematics Acquired . | . . . . Parts Built . | . . . . Authchips . | . . . . Time . | . . . . Total Part Build Rating . | . . . . Parts Repaired . | . . . . Time . | . . . . Parts Recycled . | . . . . Recycled Matter . | . . . . Retrieved Matter . | . . . . Retrieved Components 3 | . 3 . . Parts Scanalyzed . | . . . . Part Schematics Acquired . | . . . . Parts Damaged . | . . . . Bothacking | -11 -10 -9 -8 ------------ Run | Yrd Mat Mat Mat Used RIF Installer . | . . . . Robots Hacked . | . . . . Non-combat . | . . . . Combat . | . . . . Robot Hacks Applied . | . . . . Relay Couplers Released . | . . . . Fabnet Peak Effective % . | . . . . Robots Rewired . | . . . . Allies Hacked . | . . . . Hacks Repelled . | . . . . Allies | -11 -10 -9 -8 -------- Run | Yrd Mat Mat Mat Total Allies . | . . . . Largest Group . | . . . . Highest-Rated Group . | . . . . Highest-Rated Ally . | . . . . Total Orders . | . . . . Ally Attacks . | . . . . Total Damage . | . . . . Kills . | . . . . Allies Corrupted . | . . . . Allies Melted . | . . . . Intel | -11 -10 -9 -8 ------- Run | Yrd Mat Mat Mat Robot Analysis Total . | . . . . Derelict Logs Recovered . | . . . . Drone Launches . | . . . . Drone Recoveries . | . . . . Exploration | -11 -10 -9 -8 ------------- Run | Yrd Mat Mat Mat Turns Passed 767 | 98 174 160 335 Spaces Moved 810 | 74 183 226 327 Core 14 | 7 . 7 . Treads . | . . . . Legs . | . . . . Wheels 153 | 67 86 . . Hover 409 | . . 92 317 Flight 234 | . 97 127 10 Fastest Speed 34 | 50 37 34 48 Average Speed 53 | 77 57 43 53 Slowest Speed 182 | 80 80 100 182 Overloaded Moves . | . . . . Propulsion Burnouts . | . . . . Robots Hopped 1 | . 1 . . Cave-ins Triggered . | . . . . Exploration Rate (%) 25 | 4 38 26 33 Regions Visited 3 Branch Regions . Pre-discovered Areas . | . . . . Known Exits Taken . | . . . . Unknown Exits Taken 3 | 1 1 1 . Scrap Searched . | . . . . Spaces Dug . | . . . . Terrain Destroyed . | . . . . Melee . | . . . . Projectile . | . . . . AOE . | . . . . Terrain Rammed . | . . . . Walls Destroyed . | . . . . Machines Disabled . | . . . . Actions | -11 -10 -9 -8 --------- Run | Yrd Mat Mat Mat Total 1063 | 98 223 275 467 Wait 130 | . 9 26 95 Move 805 | 73 180 225 327 Hop 1 | . 1 . . Pick Up 27 | 8 6 4 9 Fast Attach 6 | . 2 4 . Attach 16 | 6 2 3 5 Detach . | . . . . Swap 13 | 1 2 1 9 Drop 14 | 1 2 5 6 Fire 48 | 9 19 7 13 Melee . | . . . . Ram 3 | . . . 3 Kick . | . . . . Crush . | . . . . Escape Stasis . | . . . . Rewire . | . . . . Trap . | . . . . Miscellaneous . | . . . . Route ------- -11/Scrapyard -10/Materials -9/Materials -8/Materials History --------- Turn | Location | Event 6 | -11/Scrapyard | Discovered new exit (range 15) 99 | -11/Scrapyard | Entered Materials 179 | -10/Materials | Discovered new exit (range 16) 273 | -10/Materials | Entered another Materials area 273 | -9/Materials | Evolved 2 slots: Propulsion x2 431 | -9/Materials | Discovered new exit (range 5) 433 | -9/Materials | Entered another Materials area 433 | -8/Materials | Evolved 2 slots: Power x1, Utility x1 649 | -8/Materials | Build established: Mutant 768 | -8/Materials | Self-destructed Last Messages --------------- 00720_ Slug penetrates Wall. 00725_ Dropped Com. Battery. 00726_ Acquired Prototype Flight Unit. 00727_ Identified Imp. VTOL Module. 00730_ Slug penetrates Wall. 00733_ Extracted 2 energy. 00735_ R-06 Scavenger collects Tractor Beam. 00736_ Dropped Minigun. 00738_ Acquired Minigun. 00739_ Airjet destroyed. 00743_ Slug penetrates Wall. 00743_ Airjet destroyed. 00744_ R-06 Scavenger collects Com. Battery. 00745_ Airjet destroyed. 00748_ Slug penetrates Wall. 00749_ Airjet destroyed. 00749_ Critical hit (Burn: +37). 00766_ Triggered Explosive Trap. 00766_ An explosion rips through the floor. 00768_ Slug penetrates Earth. Map ----- +----------------------------------------------------+ | ?????????????????????????????????????????????????? | | ???????#######???????????????????????????????????? | | ???????# #???????????????????????????????????? | | ???????# #???????????????????????????????????? | | ???????#""" #???????????????????????????????????? | | ???????#""" #???????????????????????????????????? | | ???????#""" [#???????????????????????????????????? | | ???????#""" #???????????????????????????????????? | | ???????#""" #???????????????????????????????????? | | ???????# #?????????######????????????????????? | | ???????# = #?????????#!!!!##???????????????????? | | ???????# #?????????! !#???????????????????? | | ???????#! #????????? #???????????????????? | | ???????# #######???# #???????????????????? | | ##########+### #???# #???????????????????? | | ##### #???????????????????? | | % ? #???????????????????? | | ? ### #???????????????????? | | ##### ? #?# r #???????????????????? | | ????# ######### #?##Yg ##???????????????????? | | ????# # # #??# h#????????????????????? | | ????# # """ !# #??# #????????????????????? | | ????# # """ / #??# ##???????????????????? | | ????# # """ # #?## #???????????????????? | | ????# # # ###### #????????????????????? | | ????# ######### #???# @ #????????????????????? | | ????# #????#####+####?## #????????????????????? | | ????# #????# #??# #????????????????????? | | ????# #????# "S #??## #????????????????????? | | ????# #????# """ #???# #????????????????????? | | ????# #????# "" #???# #????????????????????? | | ????# #????# #???# #????????????????????? | | ????# #????# * """ #???# #?????? ?????????????? | | #####/###### """ #??? !?????/#?????????????? | | # """ ## """ #??? ???? ?????????????? | | # """ "R" ## #??? ?? ??????????????? | | # "" " " ###########??? ????????????????? | | # """ #????????????? ?????????????????? | | # #????????????? ??????????????????? | | # #######??????? #??????????????????? | | # ! [ + #???????##+#####?????????????????? | | # # #?????? #?????????????????? | | #####/##### ####### """ #?????????????????? | | ???# = + ] """ #?????????????????? | | #### ######## ####### """ #?????????????????? | | #??????# #??????! #?????????????????? | | #??????# #??????? ! ""#?????????????????? | | #??????# #??????? Y"#?????????????????? | | #??????# #???????? ""#?????????????????? | | #??????# #???????? #?????????????????? | +----------------------------------------------------+ Best States ------------- Heat Dissipation 31 Energy Generation 29 Energy Capacity 500 Matter Stores 300 Matter Capacity 300 Sight Range 18 Robot Scan Range 14 Terrain Scan Range 16 Terrain Scan Density 10 Evasion (%) 63 Item Schematics ----------------- None Robot Schematics ------------------ None Fabricated ------------ Nothing Alien Tech Used ----------------- None Achievements -------------- None Challenges ------------ None Game ------ Seed MetafieldSeismicHammer Manual? 0 Play Time 00:17:30 Cumulative 23.6 hours Start 2024.04.05 @ 12:39:25 End 2024.04.05 @ 12:56:40 Sessions 1 Manual Loads 0 Difficulty Rogue Special Mode None Game No. 28 Rogue 28 Adventurer 0 Explorer 0 Win Type - Total 0 Types 0/0/0/0/0/0/0/0/0 Lore% 9 Gallery% 26 Achievement% 21 Wizard Run 0 Options --------- Layout 1 ASCII 0 Keyboard 0 Movement Mouse Keybinds 0 Fullscreen 1 Font 32/SmallcapsGlow Map View 50x35 Zoom Use 0% Tactical HUD 1 Map Filters NONE Filters NONE Steam 1 RUN: 3f4065bd-d4c4-461a-a517-4a6299b826ed